fUSD/lending_fUSD_20250911
["ID","MTS","AMOUNT","RATE_DAILY","PERIOD"]
[384874752,1757605845864,-400.0,0.00027397,7]
[384874753,1757605845874,-1000.0,0.00027397,7]
[384874754,1757605845883,-474.72,0.00027397,7]
[384874755,1757605845893,-400.0,0.00027397,7]
[384874756,1757605845902,-400.0,0.00027397,7]
[384874757,1757605845911,-1875.12,0.00027397,7]
[384874758,1757605845920,-419.86,0.00027397,7]
[384874759,1757605845930,-151.39,0.00027397,2]
[384874760,1757605845939,-400.0,0.00027397,7]
[384874761,1757605845948,-400.0,0.00027397,7]
[384874762,1757605845957,-400.0,0.00027397,7]
[384874763,1757605845966,-400.0,0.00027397,7]
[384874764,1757605845975,-643.81,0.00027397,7]
[384874765,1757605845986,-1414.29,0.00027397,7]
[384874766,1757605845995,-400.0,0.00027397,7]
[384874767,1757605846004,-2051.62,0.00027397,7]
[384874768,1757605846013,-400.0,0.00027397,7]
[384874769,1757605846022,-167.319449,0.00027397,7]
[384874770,1757605846032,-413.65616126,0.00027397,7]
[384874771,1757605846041,-400.0,0.00027397,7]
[384874772,1757605846050,-400.0,0.00027397,7]
[384874773,1757605846060,-400.0,0.00027397,7]
[384874774,1757605846070,-404.05386786,0.00027397,7]
[384874775,1757605846080,-410.34090709,0.00027397,7]
[384874776,1757605846089,-190.78018,0.00027397,7]
[384874777,1757605846098,-400.0,0.00027397,7]
[384874778,1757605846108,-400.0,0.00027397,7]
[384874779,1757605846117,-454.91,0.00027397,7]
[384874780,1757605846126,-416.49918558,0.00027397,7]
[384874781,1757605846136,-400.0,0.00027397,7]
[384874782,1757605846145,-166.91876,0.00027397,7]
[384874783,1757605846155,-488.97,0.00027397,7]
[384874785,1757605846164,-992.84,0.00027397,7]
[384874787,1757605846173,-400.0,0.00027397,7]
[384874789,1757605846183,-163.86788107,0.00027397,7]
[384874791,1757605846192,-1057.28,0.00027397,7]
[384874792,1757605846201,-400.0,0.00027397,7]
[384874793,1757605846210,-400.0,0.00027397,7]
[384874794,1757605846219,-400.0,0.00027397,7]
[384874795,1757605846228,-400.0,0.00027397,7]
[384874796,1757605846238,-400.0,0.00027397,7]
[384874797,1757605846247,-400.0,0.00027397,7]
[384874798,1757605846256,-400.0,0.00027397,7]
[384874800,1757605846265,-421.11,0.00027397,7]
[384874802,1757605846275,-400.0,0.00027397,7]
[384874804,1757605846284,-400.0,0.00027397,7]
[384874806,1757605846294,-400.0,0.00027397,7]
[384874808,1757605846303,-968.62,0.00027397,7]
[384874810,1757605846313,-400.0,0.00027397,7]
[384874812,1757605846323,-403.53948871,0.00027397,7]
[384874814,1757605846333,-400.0,0.00027397,7]
[384874815,1757605846342,-400.0,0.00027397,7]
[384874816,1757605846351,-404.98661367,0.00027397,7]
[384874817,1757605846360,-1688.24,0.00027397,7]
[384874818,1757605846370,-400.0,0.00027397,7]
[384874819,1757605846381,-400.0,0.00027397,7]
[384874820,1757605846390,-400.0,0.00027397,7]
[384874821,1757605846399,-400.0,0.00027397,7]
[384874822,1757605846408,-400.0,0.00027397,7]
[384874823,1757605846418,-435.67,0.00027397,7]
[384874824,1757605846428,-400.0,0.00027397,7]
[384874825,1757605846437,-400.0,0.00027397,7]
[384874826,1757605846446,-400.0,0.00027397,7]
[384874827,1757605846455,-523.18,0.00027397,2]
[384874828,1757605846465,-400.0,0.00027397,7]
[384874829,1757605846474,-523.18,0.00027397,2]
[384874830,1757605846483,-523.18,0.00027397,2]
[384874831,1757605846492,-523.18,0.00027397,2]
[384874832,1757605846502,-523.18,0.00027397,2]
[384874833,1757605846511,-523.18,0.00027397,2]
[384874834,1757605846520,-400.0,0.00027397,7]
[384874835,1757605846529,-523.18,0.00027397,2]
[384874836,1757605846539,-523.18,0.00027397,2]
[384874837,1757605846548,-523.18,0.00027397,2]
[384874838,1757605846558,-400.0,0.00027397,7]
[384874839,1757605846567,-523.18,0.00027397,2]
[384874840,1757605846577,-523.18,0.00027397,2]
[384874841,1757605846587,-400.0,0.00027397,7]
[384874842,1757605846596,-400.0,0.00027397,7]
[384874843,1757605846606,-400.0,0.00027397,7]
[384874844,1757605846615,-400.0,0.00027397,7]
[384874845,1757605846625,-1021.5,0.00027397,7]
[384874846,1757605846634,-400.0,0.00027397,7]
[384874848,1757605846644,-2120.57,0.00027397,7]
[384874849,1757605846653,-400.0,0.00027397,7]
[384874850,1757605846663,-400.0,0.00027397,7]
[384874851,1757605846673,-400.0,0.00027397,7]
[384874852,1757605846682,-819.84,0.00027397,7]
[384874853,1757605846691,-400.0,0.00027397,7]
[384874854,1757605846702,-400.0,0.00027397,7]
[384874855,1757605846715,-908.76,0.00027397,7]
[384874856,1757605846725,-400.0,0.00027397,7]
[384874857,1757605846735,-403.11740514,0.00027397,7]
[384874858,1757605846745,-400.0,0.00027397,7]
[384874859,1757605846755,-1592.17,0.00027397,7]
[384874860,1757605846764,-1436.47,0.00027397,7]
[384874861,1757605846773,-400.0,0.00027397,7]
[384874862,1757605846783,-400.0,0.00027397,7]
[384874863,1757605846794,-1047.44,0.00027397,7]
[384874864,1757605846804,-400.0,0.00027397,7]
[384874865,1757605846814,-400.0,0.00027397,7]
[384874866,1757605846823,-467.96,0.00027397,7]
[384874867,1757605846832,-403.64963206,0.00027397,2]
[384874868,1757605846842,-400.0,0.00027397,7]
[384874869,1757605846852,-400.0,0.00027397,7]
[384874870,1757605846864,-546.76,0.00027397,7]
[384874871,1757605846873,-400.0,0.00027397,7]
[384874872,1757605846882,-1371.83,0.00027397,7]
[384874873,1757605846893,-400.0,0.00027397,7]
[384874874,1757605846902,-653.66,0.00027397,7]
[384874875,1757605846913,-400.0,0.00027397,7]
[384874876,1757605846922,-743.26,0.00027397,7]
[384874877,1757605846932,-400.0,0.00027397,7]
[384874878,1757605846941,-400.0,0.00027397,7]
[384874879,1757605846951,-400.0,0.00027397,7]
[384874880,1757605846960,-300.0,0.00027397,7]
[384874881,1757605846970,-991.19,0.00027397,7]
[384874882,1757605846979,-400.0,0.00027397,7]
[384874883,1757605846989,-400.0,0.00027397,7]
[384874884,1757605846999,-400.0,0.00027397,7]
[384874885,1757605847008,-400.0,0.00027397,7]
[384874886,1757605847017,-400.0,0.00027397,7]
[384874887,1757605847027,-176.37940642,0.00027397,7]
[384874888,1757605847036,-1366.04,0.00027397,7]
[384874889,1757605847046,-400.0,0.00027397,7]
[384874890,1757605847058,-400.0,0.00027397,7]
[384874891,1757605847067,-760.45,0.00027397,7]
[384874892,1757605847078,-400.0,0.00027397,7]
[384874893,1757605847088,-1897.06,0.00027397,7]
[384874894,1757605847097,-400.0,0.00027397,7]
[384874895,1757605847106,-1550.55,0.00027397,7]
[384874896,1757605847116,-452.29,0.00027397,7]
[384874897,1757605847127,-621.15,0.00027397,7]
[384874898,1757605847137,-400.0,0.00027397,7]
[384874899,1757605847147,-636.23,0.00027397,7]
[384874900,1757605847157,-400.0,0.00027397,7]
[384874901,1757605847168,-400.0,0.00027397,7]
[384874902,1757605847177,-400.0,0.00027397,7]
[384874903,1757605847187,-403.28143332,0.00027397,7]
[384874904,1757605847196,-400.0,0.00027397,7]
[384874905,1757605847205,-400.0,0.00027397,7]
[384874906,1757605847214,-400.0,0.00027397,7]
[384874907,1757605847223,-400.0,0.00027397,7]
[384874908,1757605847232,-400.0,0.00027397,7]
[384874909,1757605847241,-400.0,0.00027397,7]
[384874910,1757605847250,-1700.14,0.00027397,7]
[384874911,1757605847259,-400.0,0.00027397,7]
[384874912,1757605847269,-671.89,0.00027397,7]
[384874913,1757605847279,-400.0,0.00027397,7]
[384874914,1757605847290,-400.0,0.00027397,7]
[384874915,1757605847300,-400.0,0.00027397,7]
[384874916,1757605847310,-400.0,0.00027397,7]
[384874917,1757605847321,-400.0,0.00027397,7]
[384874918,1757605847330,-400.0,0.00027397,7]
[384874919,1757605847340,-284.92579623,0.00027397,7]
[384874920,1757605847350,-400.0,0.00027397,7]
[384874921,1757605847359,-400.0,0.00027397,7]
[384874922,1757605847369,-400.0,0.00027397,7]
[384874923,1757605847380,-400.0,0.00027397,7]
[384874924,1757605847389,-400.0,0.00027397,7]
[384874925,1757605847398,-151.0,0.00027397,7]
[384874926,1757605847408,-400.0,0.00027397,7]
[384874927,1757605847417,-400.0,0.00027397,7]
[384874928,1757605847427,-249.0,0.00027397,7]
[384874929,1757605847436,-400.0,0.00027397,7]
[384874930,1757605847445,-418.21,0.00027397,7]
[384874931,1757605847456,-743.37,0.00027397,7]
[384874932,1757605847465,-256.88444035,0.00027397,7]
[384874933,1757605847475,-400.0,0.00027397,7]
[384874934,1757605847486,-400.0,0.00027397,7]
[384874935,1757605847495,-400.0,0.00027397,7]
[384874936,1757605847505,-400.0,0.00027397,7]
[384874937,1757605847514,-400.0,0.00027397,7]
[384874938,1757605847524,-400.0,0.00027397,7]
[384874939,1757605847533,-400.0,0.00027397,7]
[384874940,1757605847543,-408.35969423,0.00027397,7]
[384874941,1757605847552,-400.0,0.00027397,7]
[384874942,1757605847562,-1475.78,0.00027397,7]
[384874943,1757605847572,-1305.6,0.00027397,7]
[384874944,1757605847581,-400.0,0.00027397,7]
[384874945,1757605847591,-400.0,0.00027397,7]
[384874946,1757605847600,-448.75,0.00027397,7]
[384874947,1757605847610,-400.0,0.00027397,7]
[384874948,1757605847620,-400.0,0.00027397,7]
[384874949,1757605847629,-479.37,0.00027397,7]
[384874950,1757605847638,-773.61,0.00027397,7]
[384874951,1757605847648,-400.0,0.00027397,7]
[384874952,1757605847657,-400.0,0.00027397,7]
[384874953,1757605847667,-400.0,0.00027397,7]
[384874954,1757605847678,-400.0,0.00027397,7]
[384874955,1757605847687,-400.0,0.00027397,7]
[384874956,1757605847696,-695.13,0.00027397,7]
[384874957,1757605847707,-400.0,0.00027397,7]
[384874958,1757605847719,-400.0,0.00027397,2]
[384874959,1757605847728,-400.0,0.00027397,7]
[384874960,1757605847738,-973.95,0.00027397,7]
[384874961,1757605847747,-400.0,0.00027397,7]
[384874962,1757605847757,-400.0,0.00027397,7]
[384874963,1757605847767,-400.0,0.00027397,7]
[384874964,1757605847776,-523.89,0.00027397,7]
[384874965,1757605847788,-400.0,0.00027397,7]
[384874966,1757605847798,-400.0,0.00027397,7]
[384874967,1757605847807,-400.0,0.00027397,7]
[384874968,1757605847817,-400.0,0.00027397,7]
[384874969,1757605847828,-400.0,0.00027397,7]
[384874970,1757605847837,-400.0,0.00027397,7]
[384874971,1757605847847,-1752.13,0.00027397,7]
[384874972,1757605847856,-834.4,0.00027397,7]
[384874973,1757605847865,-435.17,0.00027397,7]
[384874974,1757605847875,-400.0,0.00027397,7]
[384874975,1757605847885,-400.0,0.00027397,7]
[384874976,1757605847897,-400.0,0.00027397,7]
[384874977,1757605847909,-2398.58,0.00027397,7]
[384874978,1757605847919,-400.0,0.00027397,7]
[384874979,1757605847929,-400.0,0.00027397,7]
[384874980,1757605847939,-400.0,0.00027397,7]
[384874981,1757605847948,-536.76,0.00027397,7]
[384874982,1757605847958,-400.0,0.00027397,7]
[384874983,1757605847968,-400.0,0.00027397,7]
[384874984,1757605847979,-400.0,0.00027397,7]
[384874985,1757605847988,-400.0,0.00027397,7]
[384874986,1757605847997,-400.0,0.00027397,7]
[384874987,1757605848007,-400.0,0.00027397,7]
[384874988,1757605848016,-982.56,0.00027397,7]
[384874989,1757605848025,-400.0,0.00027397,7]
[384874990,1757605848035,-165.56922,0.00027397,7]
[384874991,1757605848044,-400.0,0.00027397,7]
[384874992,1757605848054,-777.64,0.00027397,7]
[384874993,1757605848063,-400.0,0.00027397,7]
[384874994,1757605848077,-400.0,0.00027397,7]
[384874995,1757605848086,-1996.22,0.00027397,7]
[384874996,1757605848096,-400.0,0.00027397,7]
[384874997,1757605848105,-400.0,0.00027397,7]
[384874998,1757605848114,-400.0,0.00027397,7]
[384874999,1757605848123,-1216.98,0.00027397,7]
[384875000,1757605848132,-1106.25,0.00027397,7]
[384875001,1757605848141,-400.0,0.00027397,7]
[384875002,1757605848151,-400.0,0.00027397,7]
[384875003,1757605848160,-400.0,0.00027397,7]
[384875004,1757605848169,-400.0,0.00027397,7]
[384875005,1757605848178,-400.0,0.00027397,7]
[384875006,1757605848188,-400.0,0.00027397,7]
[384875007,1757605848197,-400.0,0.00027397,7]
[384875008,1757605848207,-400.0,0.00027397,7]
[384875009,1757605848216,-400.0,0.00027397,7]
[384875010,1757605848225,-410.43249492,0.00027397,7]
[384875011,1757605848235,-509.73,0.00027397,7]
[384875012,1757605848497,-400.0,0.00027397,7]
[384875013,1757605848508,-400.0,0.00027397,7]
[384875014,1757605848519,-400.0,0.00027397,7]
[384875015,1757605848529,-2034.53,0.00027397,7]
[384875016,1757605848539,-400.0,0.00027397,7]
[384875017,1757605848550,-400.0,0.00027397,7]
[384875018,1757605848559,-1025.09,0.00027397,7]
[384875019,1757605848568,-527.81803977,0.00027397,7]
[384875020,1757605848578,-400.0,0.00027397,7]
[384875021,1757605848590,-434.68,0.00027397,7]
[384875022,1757605848600,-1266.89,0.00027397,7]
[384875023,1757605848610,-400.0,0.00027397,7]
[384875024,1757605848621,-623.16,0.00027397,7]
[384875025,1757605848631,-400.0,0.00027397,7]
[384875026,1757605848640,-1960.54,0.00027397,7]
[384875027,1757605848650,-400.0,0.00027397,7]
[384875028,1757605848660,-400.0,0.00027397,7]
[384875029,1757605848669,-400.0,0.00027397,7]
[384875030,1757605848679,-2430.65,0.00027397,7]
[384875031,1757605848688,-400.0,0.00027397,7]
[384875032,1757605848698,-400.0,0.00027397,7]
[384875033,1757605848708,-400.0,0.00027397,7]
[384875034,1757605848720,-400.0,0.00027397,7]
[384875035,1757605848733,-400.0,0.00027397,7]
[384875036,1757605848752,-400.0,0.00027397,7]
[384875037,1757605848769,-2152.42,0.00027397,7]
[384875038,1757605848779,-400.0,0.00027397,7]
[384875039,1757605848790,-706.57,0.00027397,7]
[384875040,1757605848800,-400.0,0.00027397,7]
[384875041,1757605848809,-573.78,0.00027397,7]
[384875042,1757605848819,-400.0,0.00027397,7]
[384875043,1757605848828,-400.0,0.00027397,7]
[384875044,1757605848837,-400.0,0.00027397,7]
[384875045,1757605848847,-1633.21,0.00027397,7]
[384875046,1757605848856,-400.0,0.00027397,7]
[384875047,1757605848866,-400.0,0.00027397,7]
[384875048,1757605848876,-884.35,0.00027397,7]
[384875049,1757605848886,-1282.05,0.00027397,7]
[384875050,1757605848895,-400.0,0.00027397,7]
[384875051,1757605848906,-400.0,0.00027397,7]
[384875052,1757605848916,-1258.85,0.00027397,7]
[384875053,1757605848925,-400.0,0.00027397,7]
[384875054,1757605848935,-1437.91,0.00027397,7]
[384875055,1757605848944,-830.52,0.00027397,7]
[384875056,1757605848954,-400.0,0.00027397,7]
[384875057,1757605848963,-400.0,0.00027397,7]
[384875058,1757605848972,-766.75,0.00027397,7]
[384875059,1757605848982,-743.52,0.00027397,7]
[384875060,1757605848991,-400.0,0.00027397,7]
[384875061,1757605849000,-400.0,0.00027397,7]
[384875062,1757605849009,-400.0,0.00027397,7]
[384875063,1757605849019,-1541.14,0.00027397,7]
[384875064,1757605849028,-400.0,0.00027397,7]
[384875065,1757605849039,-400.0,0.00027397,7]
[384875066,1757605849047,-1442.86,0.00027397,7]
[384875067,1757605849057,-400.0,0.00027397,7]
[384875068,1757605849066,-400.0,0.00027397,7]
[384875069,1757605849076,-400.0,0.00027397,7]
[384875070,1757605849085,-400.0,0.00027397,7]
[384875071,1757605849095,-400.0,0.00027397,7]
[384875072,1757605849104,-400.0,0.00027397,7]
[384875073,1757605849114,-2113.0,0.00027397,7]
[384875074,1757605849123,-191.51939344,0.00027397,7]
[384875075,1757605849133,-400.0,0.00027397,7]
[384875076,1757605849142,-400.0,0.00027397,7]
[384875077,1757605849151,-400.0,0.00027397,7]
[384875078,1757605849160,-400.0,0.00027397,7]
[384875079,1757605849169,-400.0,0.00027397,7]
[384875080,1757605849178,-400.0,0.00027397,7]
[384875081,1757605849188,-400.0,0.00027397,7]
[384875082,1757605849198,-2961.33,0.00027397,7]
[384875083,1757605849207,-400.0,0.00027397,7]
[384875084,1757605849216,-1319.83,0.00027397,7]
[384875085,1757605849226,-400.0,0.00027397,7]
[384875086,1757605849236,-400.0,0.00027397,7]
[384875087,1757605849245,-2334.12,0.00027397,7]
[384875088,1757605849255,-400.0,0.00027397,7]
[384875089,1757605849264,-2131.8,0.00027397,7]
[384875090,1757605849274,-400.0,0.00027397,7]
[384875091,1757605849283,-400.0,0.00027397,7]
[384875092,1757605849292,-400.0,0.00027397,7]
[384875093,1757605849302,-1352.75,0.00027397,7]
[384875094,1757605849311,-2273.85,0.00027397,7]
[384875095,1757605849320,-400.0,0.00027397,7]
[384875096,1757605849331,-975.36,0.00027397,7]
[384875097,1757605849340,-400.0,0.00027397,7]
[384875098,1757605849350,-2605.02,0.00027397,7]
[384875099,1757605849360,-1303.57,0.00027397,7]
[384875100,1757605849370,-404.78,0.00027397,7]
[384875101,1757605849380,-635.26,0.00027397,7]
[384875102,1757605849394,-400.0,0.00027397,7]
[384875103,1757605849404,-400.0,0.00027397,7]
[384875104,1757605849413,-400.0,0.00027397,7]
[384875105,1757605849423,-400.0,0.00027397,7]
[384875106,1757605849432,-400.0,0.00027397,7]
[384875107,1757605849442,-424.52,0.00027397,7]
[384875108,1757605849451,-3491.07,0.00027397,7]
[384875109,1757605849461,-400.0,0.00027397,7]
[384875110,1757605849470,-1905.1,0.00027397,7]
[384875111,1757605849479,-400.0,0.00027397,7]
[384875112,1757605849489,-3074.66,0.00027397,7]
[384875113,1757605849498,-400.0,0.00027397,7]
[384875114,1757605849507,-2006.01,0.00027397,7]
[384875115,1757605849516,-1453.65,0.00027397,7]
[384875116,1757605849525,-1049.79,0.00027397,7]
[384875117,1757605849534,-400.0,0.00027397,7]
[384875118,1757605849544,-461.25,0.00027397,7]
[384875119,1757605849553,-400.0,0.00027397,7]
[384875120,1757605849563,-1118.07,0.00027397,7]
[384875121,1757605849572,-3010.07,0.00027397,7]
[384875122,1757605849582,-400.0,0.00027397,7]
[384875123,1757605849592,-1952.8,0.00027397,7]
[384875124,1757605849602,-405.11,0.00027397,7]
[384875125,1757605849612,-400.0,0.00027397,7]
[384875126,1757605849621,-2387.31,0.00027397,7]
[384875127,1757605849630,-400.0,0.00027397,7]
[384875128,1757605849640,-400.0,0.00027397,7]
[384875129,1757605849650,-1115.95,0.00027397,7]
[384875130,1757605849659,-400.0,0.00027397,7]
[384875131,1757605849669,-400.0,0.00027397,7]
[384875132,1757605849679,-400.0,0.00027397,7]
[384875133,1757605849688,-400.0,0.00027397,7]
[384875134,1757605849697,-2949.87,0.00027397,7]
[384875135,1757605849706,-1149.08,0.00027397,7]
[384875136,1757605849722,-2604.5,0.00027397,7]
[384875137,1757605849732,-400.0,0.00027397,7]
[384875138,1757605849741,-400.0,0.00027397,7]
[384875139,1757605849751,-400.0,0.00027397,7]
[384875140,1757605849760,-1998.86,0.00027397,7]
[384875141,1757605849769,-3193.89,0.00027397,7]
[384875142,1757605849778,-400.0,0.00027397,7]
[384875143,1757605849788,-400.0,0.00027397,7]
[384875144,1757605849797,-557.65,0.00027397,7]
[384875145,1757605849807,-1015.74,0.00027397,7]
[384875146,1757605849817,-1823.63,0.00027397,7]
[384875147,1757605849826,-400.0,0.00027397,7]
[384875148,1757605849835,-400.0,0.00027397,7]
[384875149,1757605849844,-400.0,0.00027397,7]
[384875150,1757605849853,-571.66,0.00027397,7]
[384875151,1757605849862,-400.0,0.00027397,7]
[384875152,1757605849872,-963.44,0.00027397,7]
[384875153,1757605849883,-400.0,0.00027397,7]
[384875154,1757605849893,-1632.8,0.00027397,7]
[384875155,1757605849903,-1712.31,0.00027397,7]
[384875156,1757605849913,-4075.49,0.00027397,7]
[384875157,1757605849922,-400.0,0.00027397,7]
[384875158,1757605849931,-1365.88,0.00027397,7]
[384875159,1757605849940,-1029.74,0.00027397,7]
[384875160,1757605849950,-400.0,0.00027397,7]
[384875161,1757605849959,-1365.88,0.00027397,7]
[384875162,1757605849969,-400.0,0.00027397,7]
[384875163,1757605849978,-1365.88,0.00027397,7]
[384875164,1757605849987,-1365.88,0.00027397,7]
[384875165,1757605849997,-1365.88,0.00027397,7]
[384875166,1757605850007,-1341.78,0.00027397,7]
[384875167,1757605850016,-400.0,0.00027397,7]
[384875168,1757605850026,-400.0,0.00027397,7]
[384875169,1757605850036,-400.0,0.00027397,7]
[384875170,1757605850045,-1588.54,0.00027397,7]
[384875171,1757605850055,-400.0,0.00027397,7]
[384875172,1757605850064,-400.0,0.00027397,7]
[384875173,1757605850074,-401.3580034,0.00027397,7]
[384875174,1757605850083,-400.0,0.00027397,7]
[384875175,1757605850092,-400.0,0.00027397,7]
[384875176,1757605850102,-1658.2,0.00027397,7]
[384875177,1757605850112,-2025.37,0.00027397,7]
[384875178,1757605850122,-400.0,0.00027397,7]
[384875179,1757605850132,-1906.0,0.00027397,7]
[384875180,1757605850141,-1365.88,0.00027397,7]
[384875181,1757605850150,-1365.88,0.00027397,7]
[384875182,1757605850160,-1365.88,0.00027397,7]
[384875183,1757605850169,-1365.88,0.00027397,7]
[384875184,1757605850178,-1365.88,0.00027397,7]
[384875185,1757605850188,-1365.88,0.00027397,7]
[384875186,1757605850197,-400.0,0.00027397,7]
[384875187,1757605850207,-400.0,0.00027397,7]
[384875188,1757605850217,-400.0,0.00027397,7]
[384875189,1757605850226,-500.0,0.00027397,7]
[384875190,1757605850236,-500.0,0.00027397,7]
[384875191,1757605850245,-500.0,0.00027397,7]
[384875192,1757605850254,-400.0,0.00027397,7]
[384875193,1757605850288,-500.0,0.00027397,7]
[384875194,1757605850300,-542.68805031,0.00027397,7]
[384875195,1757605850309,-500.0,0.00027397,7]
[384875196,1757605850318,-400.0,0.00027397,7]
[384875197,1757605850329,-500.0,0.00027397,7]
[384875198,1757605850338,-500.0,0.00027397,7]
[384875199,1757605850347,-400.0,0.00027397,7]
[384875200,1757605850356,-500.0,0.00027397,7]
[384875201,1757605850366,-500.0,0.00027397,7]
[384875202,1757605850375,-1693.35,0.00027397,7]
[384875203,1757605850385,-664.44,0.00027397,7]
[384875204,1757605850394,-500.0,0.00027397,7]
[384875205,1757605850404,-354.35355276,0.00027397,7]
[384875206,1757605850413,-400.0,0.00027397,7]
[384875207,1757605850423,-601.81,0.00027397,7]
[384875208,1757605850432,-378.20340224,0.00027397,7]
[384875209,1757605850442,-400.0,0.00027397,7]
[384875210,1757605850452,-770.45,0.00027397,7]
[384875211,1757605850461,-433.66,0.00027397,7]
[384875212,1757605850470,-500.0,0.00027397,7]
[384875213,1757605850480,-400.0,0.00027397,7]
[384875214,1757605850490,-500.0,0.00027397,7]
[384875215,1757605850499,-1648.86,0.00027397,7]
[384875216,1757605850509,-400.0,0.00027397,7]
[384875217,1757605850518,-408.45,0.00027397,7]
[384875218,1757605850528,-400.0,0.00027397,7]
[384875219,1757605850538,-400.0,0.00027397,7]
[384875220,1757605850547,-400.0,0.00027397,7]
[384875221,1757605850557,-400.0,0.00027397,7]
[384875222,1757605850566,-525.77,0.00027397,7]
[384875223,1757605850575,-3251.74,0.00027397,7]
[384875224,1757605850585,-400.0,0.00027397,7]
[384875225,1757605850594,-2004.85,0.00027397,7]
[384875226,1757605850603,-400.0,0.00027397,7]
[384875227,1757605850613,-1068.32,0.00027397,7]
[384875228,1757605850623,-400.0,0.00027397,7]
[384875229,1757605850631,-400.0,0.00027397,7]
[384875230,1757605850640,-400.0,0.00027397,7]
[384875231,1757605850650,-400.0,0.00027397,7]
[384875232,1757605850659,-400.0,0.00027397,7]
[384875233,1757605850667,-400.0,0.00027397,7]
[384875234,1757605850677,-400.0,0.00027397,7]
[384875235,1757605850687,-400.0,0.00027397,7]
[384875236,1757605850696,-400.0,0.00027397,7]
[384875237,1757605850705,-400.0,0.00027397,7]
[384875238,1757605850719,-400.0,0.00027397,7]
[384875239,1757605850729,-400.0,0.00027397,7]
[384875240,1757605850739,-424.53,0.00027397,7]
[384875241,1757605850749,-400.0,0.00027397,7]
[384875242,1757605850758,-3117.69,0.00027397,7]
[384875243,1757605850768,-1255.34,0.00027397,7]
[384875244,1757605850777,-729.14,0.00027397,7]
[384875245,1757605850787,-400.0,0.00027397,7]
[384875246,1757605850797,-400.0,0.00027397,7]
[384875247,1757605850807,-1290.38,0.00027397,7]
[384875248,1757605850816,-400.0,0.00027397,7]
[384875249,1757605850825,-2269.18,0.00027397,7]
[384875250,1757605850835,-400.0,0.00027397,7]
[384875251,1757605850844,-679.98,0.00027397,7]
[384875252,1757605850854,-420.91,0.00027397,7]
[384875253,1757605850864,-586.88,0.00027397,7]
[384875254,1757605850873,-400.0,0.00027397,7]
[384875255,1757605850882,-400.0,0.00027397,7]
[384875256,1757605850892,-1373.82,0.00027397,7]
[384875257,1757605850901,-400.0,0.00027397,7]
[384875258,1757605850911,-400.0,0.00027397,7]
[384875259,1757605850920,-844.15,0.00027397,7]
[384875260,1757605850929,-741.09,0.00027397,7]
[384875261,1757605850939,-400.0,0.00027397,7]
[384875262,1757605850949,-400.0,0.00027397,7]
[384875263,1757605850958,-400.0,0.00027397,7]
[384875264,1757605850968,-3280.8,0.00027397,7]